[Event "Betsys MČR v online bleskovém šachu 2021"]
[Site "Chess.com"]
[Date "2021.04.17"]
[Round "4"]
[White "krystofkrizek1"]
[Black "mendryxchess"]
[Result "1-0"]
[WhiteElo "2102"]
[BlackElo "1752"]
[TimeControl "180+1"]
[EndTime "9:37:32 PDT"]
[Termination "Uživatel krystofkrizek1 zvítězil na čas"]

1. e4 {[%clk 0:02:57.9]} 1... c5 {[%clk 0:02:58.1]} 2. Nf3 {[%clk 0:02:54.3]}
2... e6 {[%clk 0:02:57.7]} 3. b3 {[%clk 0:02:50.6]} 3... Nc6 {[%clk 0:02:55]} 4.
Bb2 {[%clk 0:02:50]} 4... d6 {[%clk 0:02:48]} 5. Bc4 {[%clk 0:02:44.5]} 5... Nf6
{[%clk 0:02:45.7]} 6. O-O {[%clk 0:02:30.3]} 6... Be7 {[%clk 0:02:44]} 7. d3
{[%clk 0:02:23.4]} 7... O-O {[%clk 0:02:43.6]} 8. Nbd2 {[%clk 0:02:21.8]} 8...
a6 {[%clk 0:02:39.7]} 9. d4 {[%clk 0:02:12.7]} 9... cxd4 {[%clk 0:02:25.3]} 10.
Nxd4 {[%clk 0:02:12.1]} 10... Qc7 {[%clk 0:02:13.4]} 11. Bd3 {[%clk 0:01:59.1]}
11... d5 {[%clk 0:02:04.8]} 12. Qe2 {[%clk 0:01:54]} 12... Rd8 {[%clk
0:01:59.1]} 13. exd5 {[%clk 0:01:35.1]} 13... Rxd5 {[%clk 0:01:50]} 14. Nxc6
{[%clk 0:01:30.3]} 14... Qxc6 {[%clk 0:01:50.9]} 15. Ne4 {[%clk 0:01:28]} 15...
Qc7 {[%clk 0:01:21]} 16. c4 {[%clk 0:01:20.9]} 16... Rd8 {[%clk 0:01:13.8]} 17.
Rad1 {[%clk 0:01:16.2]} 17... Nxe4 {[%clk 0:01:11.5]} 18. Qxe4 {[%clk
0:01:08.6]} 18... g6 {[%clk 0:00:57.8]} 19. Be5 {[%clk 0:01:00.9]} 19... Bd6
{[%clk 0:00:47.5]} 20. Bg3 {[%clk 0:00:48.8]} 20... e5 {[%clk 0:00:30.4]} 21.
Qe2 {[%clk 0:00:32.5]} 21... Be6 {[%clk 0:00:24.7]} 22. Be4 {[%clk 0:00:28.6]}
22... f5 {[%clk 0:00:19.5]} 23. Bd5 {[%clk 0:00:28.5]} 23... Qe7 {[%clk
0:00:15.9]} 24. Bxe5 {[%clk 0:00:22.3]} 24... Bxd5 {[%clk 0:00:14.3]} 25. Rxd5
{[%clk 0:00:22.8]} 25... Bxe5 {[%clk 0:00:14]} 26. Qxe5 {[%clk 0:00:21.1]} 26...
Qf7 {[%clk 0:00:10.8]} 27. Rfd1 {[%clk 0:00:19.5]} 27... Rxd5 {[%clk 0:00:10]}
28. Qxd5 {[%clk 0:00:20.4]} 28... Qxd5 {[%clk 0:00:07.1]} 29. Rxd5 {[%clk
0:00:21.3]} 29... Re8 {[%clk 0:00:07.8]} 30. Kf1 {[%clk 0:00:21.9]} 30... Re7
{[%clk 0:00:07.3]} 31. g3 {[%clk 0:00:19.2]} 31... Kf7 {[%clk 0:00:07.7]} 32. h4
{[%clk 0:00:18.8]} 32... Ke6 {[%clk 0:00:06.2]} 33. Rd3 {[%clk 0:00:18.1]} 33...
Rc7 {[%clk 0:00:05.4]} 34. Ke2 {[%clk 0:00:18.1]} 34... Rc5 {[%clk 0:00:04.3]}
35. Re3+ {[%clk 0:00:16.9]} 35... Kf6 {[%clk 0:00:04.4]} 36. Kd3 {[%clk
0:00:17]} 36... Ra5 {[%clk 0:00:04.5]} 37. a4 {[%clk 0:00:17]} 37... Rc5 {[%clk
0:00:03.9]} 38. b4 {[%clk 0:00:14.3]} 38... Rc6 {[%clk 0:00:03.2]} 39. c5 {[%clk
0:00:13.1]} 39... a5 {[%clk 0:00:01.6]} 40. Kc4 {[%clk 0:00:12]} 40... axb4
{[%clk 0:00:01.2]} 41. Kxb4 {[%clk 0:00:12.9]} 1-0

[Event "Betsys MČR v online bleskovém šachu 2021"]
[Site "Chess.com"]
[Date "2021.04.17"]
[Round "4"]
[White "Lipican"]
[Black "martin1804"]
[Result "0-1"]
[WhiteElo "2092"]
[BlackElo "2308"]
[TimeControl "180+1"]
[EndTime "9:37:33 PDT"]
[Termination "Uživatel martin1804 zvítězil po vzdání soupeře"]

1. d4 {[%clk 0:03:00.9]} 1... Nf6 {[%clk 0:02:54.9]} 2. c4 {[%clk 0:03:00.2]}
2... d6 {[%clk 0:02:52.2]} 3. Nc3 {[%clk 0:02:58.8]} 3... g6 {[%clk 0:02:49.4]}
4. Nf3 {[%clk 0:02:58.1]} 4... Bg7 {[%clk 0:02:46.8]} 5. e4 {[%clk 0:02:57.4]}
5... O-O {[%clk 0:02:31]} 6. Be2 {[%clk 0:02:57]} 6... Nc6 {[%clk 0:02:28.5]} 7.
d5 {[%clk 0:02:55.5]} 7... Nb4 {[%clk 0:02:15.4]} 8. O-O {[%clk 0:02:52.2]} 8...
c5 {[%clk 0:02:12.5]} 9. a3 {[%clk 0:02:49.1]} 9... Na6 {[%clk 0:02:12.2]} 10.
h3 {[%clk 0:02:47]} 10... Nc7 {[%clk 0:02:09.4]} 11. a4 {[%clk 0:02:44.4]} 11...
e6 {[%clk 0:01:53]} 12. Bf4 {[%clk 0:02:40.2]} 12... e5 {[%clk 0:01:51.7]} 13.
Bg5 {[%clk 0:02:37.7]} 13... Na6 {[%clk 0:01:49.7]} 14. Qd2 {[%clk 0:02:29.9]}
14... Re8 {[%clk 0:01:47.1]} 15. Bh6 {[%clk 0:02:28.5]} 15... Bh8 {[%clk
0:01:45.1]} 16. Nh2 {[%clk 0:02:25]} 16... Nb4 {[%clk 0:01:40.6]} 17. Bg5 {[%clk
0:02:23]} 17... Qc7 {[%clk 0:01:22.2]} 18. Ng4 {[%clk 0:02:21.6]} 18... Nxg4
{[%clk 0:01:17.3]} 19. hxg4 {[%clk 0:02:20.4]} 19... f6 {[%clk 0:01:09.5]} 20.
Be3 {[%clk 0:02:17.8]} 20... a6 {[%clk 0:00:58.1]} 21. Rac1 {[%clk 0:02:10.7]}
21... Bd7 {[%clk 0:00:57.8]} 22. g5 {[%clk 0:01:58]} 22... f5 {[%clk 0:00:57.3]}
23. exf5 {[%clk 0:01:53.7]} 23... gxf5 {[%clk 0:00:51.3]} 24. Bh5 {[%clk
0:01:47.8]} 24... Rf8 {[%clk 0:00:42.2]} 25. f4 {[%clk 0:01:42.8]} 25... e4
{[%clk 0:00:40.8]} 26. Be2 {[%clk 0:01:34.2]} 26... Rae8 {[%clk 0:00:39.1]} 27.
g3 {[%clk 0:01:33.5]} 27... Re7 {[%clk 0:00:33.3]} 28. Kg2 {[%clk 0:01:33.2]}
28... Be8 {[%clk 0:00:31.4]} 29. Rh1 {[%clk 0:01:31.8]} 29... Bg6 {[%clk
0:00:26.8]} 30. Rh2 {[%clk 0:01:28.6]} 30... Rfe8 {[%clk 0:00:20.3]} 31. Rch1
{[%clk 0:01:27.1]} 31... Nd3 {[%clk 0:00:20.8]} 32. Bh5 {[%clk 0:01:20.1]} 32...
Bg7 {[%clk 0:00:20.7]} 33. Bxg6 {[%clk 0:01:19.4]} 33... hxg6 {[%clk 0:00:21.6]}
34. Qe2 {[%clk 0:01:09.9]} 34... Qb6 {[%clk 0:00:19.9]} 35. Rb1 {[%clk
0:00:56.8]} 35... Qb3 {[%clk 0:00:19.5]} 36. Qd1 {[%clk 0:00:53.4]} 36... Qxc4
{[%clk 0:00:19.4]} 37. Ne2 {[%clk 0:00:49.2]} 37... Qb4 {[%clk 0:00:18]} 38. b3
{[%clk 0:00:47.6]} 38... b5 {[%clk 0:00:17]} 39. axb5 {[%clk 0:00:46.1]} 39...
axb5 {[%clk 0:00:17.9]} 40. Bd2 {[%clk 0:00:44.9]} 40... Qa3 {[%clk 0:00:17.4]}
41. Qc2 {[%clk 0:00:41.3]} 41... Ra8 {[%clk 0:00:11.8]} 42. Bc3 {[%clk
0:00:39.1]} 42... Qa2 {[%clk 0:00:12.1]} 43. Qxa2 {[%clk 0:00:26.7]} 43... Rxa2
{[%clk 0:00:13]} 44. Bxg7 {[%clk 0:00:16.5]} 44... Rxe2+ {[%clk 0:00:12.6]} 45.
Kg1 {[%clk 0:00:16.3]} 45... Rxh2 {[%clk 0:00:13.1]} 46. Kxh2 {[%clk 0:00:15.7]}
46... Kxg7 {[%clk 0:00:12.9]} 47. Ra1 {[%clk 0:00:15.6]} 47... e3 {[%clk
0:00:12.7]} 48. Kg2 {[%clk 0:00:14.8]} 48... e2 {[%clk 0:00:12.9]} 0-1

[Event "Betsys MČR v online bleskovém šachu 2021"]
[Site "Chess.com"]
[Date "2021.04.17"]
[Round "4"]
[White "Pokemonchess"]
[Black "masterofbuzkashi"]
[Result "0-1"]
[WhiteElo "1934"]
[BlackElo "2255"]
[TimeControl "180+1"]
[EndTime "9:37:33 PDT"]
[Termination "Uživatel masterofbuzkashi zvítězil po vzdání soupeře"]

1. e4 {[%clk 0:03:00.9]} 1... c5 {[%clk 0:02:54.9]} 2. Nf3 {[%clk 0:02:59.1]}
2... Nc6 {[%clk 0:02:55.1]} 3. d4 {[%clk 0:02:58.4]} 3... cxd4 {[%clk 0:02:56]}
4. Nxd4 {[%clk 0:02:58.9]} 4... Nf6 {[%clk 0:02:56.7]} 5. Nc3 {[%clk 0:02:58.8]}
5... g6 {[%clk 0:02:56.9]} 6. Bc4 {[%clk 0:02:56.6]} 6... Bg7 {[%clk 0:02:57.1]}
7. Bb3 {[%clk 0:02:53.7]} 7... O-O {[%clk 0:02:57.2]} 8. Be3 {[%clk 0:02:49.2]}
8... a6 {[%clk 0:02:57.4]} 9. O-O {[%clk 0:02:48.2]} 9... b5 {[%clk 0:02:57.4]}
10. f3 {[%clk 0:02:42.1]} 10... Bb7 {[%clk 0:02:57.4]} 11. Nxc6 {[%clk
0:02:32.7]} 11... Bxc6 {[%clk 0:02:56.1]} 12. Bd4 {[%clk 0:02:27.6]} 12... a5
{[%clk 0:02:54.8]} 13. a3 {[%clk 0:02:19.8]} 13... a4 {[%clk 0:02:53.5]} 14. Ba2
{[%clk 0:02:18.7]} 14... Qc7 {[%clk 0:02:49.1]} 15. Qd2 {[%clk 0:01:56.6]} 15...
Rab8 {[%clk 0:02:43.6]} 16. Rad1 {[%clk 0:01:42.3]} 16... d6 {[%clk 0:02:42.8]}
17. Bf2 {[%clk 0:01:36.8]} 17... b4 {[%clk 0:02:34.5]} 18. axb4 {[%clk
0:01:33.2]} 18... Rxb4 {[%clk 0:02:29.3]} 19. Rb1 {[%clk 0:01:18]} 19... Rfb8
{[%clk 0:02:26.6]} 20. Nd1 {[%clk 0:01:09.7]} 20... Nd7 {[%clk 0:02:18.6]} 21.
c3 {[%clk 0:01:07.4]} 21... R4b7 {[%clk 0:02:15.4]} 22. Ne3 {[%clk 0:01:07.5]}
22... Nb6 {[%clk 0:02:00.3]} 23. Rfd1 {[%clk 0:00:54.5]} 23... Bb5 {[%clk
0:01:56.7]} 24. Nd5 {[%clk 0:00:48.8]} 24... Nxd5 {[%clk 0:01:54.2]} 25. Qxd5
{[%clk 0:00:40.5]} 25... Be8 {[%clk 0:01:47.8]} 26. Qd2 {[%clk 0:00:33]} 26...
Qa5 {[%clk 0:01:38.7]} 27. Bd5 {[%clk 0:00:31.1]} 27... Rc7 {[%clk 0:01:34.4]}
28. Bd4 {[%clk 0:00:29.3]} 28... e5 {[%clk 0:01:30.4]} 29. Be3 {[%clk
0:00:26.7]} 29... Bc6 {[%clk 0:01:24.2]} 30. Bxc6 {[%clk 0:00:25.1]} 30... Rxc6
{[%clk 0:01:23.7]} 31. Bf2 {[%clk 0:00:22]} 31... Bf8 {[%clk 0:01:22.2]} 32. Be3
{[%clk 0:00:21.1]} 32... Rbc8 {[%clk 0:01:19.7]} 33. Bf2 {[%clk 0:00:20.2]}
33... a3 {[%clk 0:01:18.9]} 34. b4 {[%clk 0:00:19.7]} 34... Qa4 {[%clk
0:01:14.8]} 35. Rdc1 {[%clk 0:00:19.2]} 35... a2 {[%clk 0:01:14]} 36. Ra1 {[%clk
0:00:19.2]} 36... Ra8 {[%clk 0:01:12.1]} 37. Qb2 {[%clk 0:00:17.9]} 37... Qa3
{[%clk 0:01:07.7]} 38. Rc2 {[%clk 0:00:17.2]} 38... Qxb2 {[%clk 0:01:07.6]} 39.
Rxb2 {[%clk 0:00:17.7]} 39... Rxc3 {[%clk 0:01:06.9]} 40. Be1 {[%clk 0:00:16.9]}
40... Rca3 {[%clk 0:01:05.9]} 41. Kf2 {[%clk 0:00:17.4]} 41... f5 {[%clk
0:01:05.1]} 42. Ke2 {[%clk 0:00:17.5]} 42... Kf7 {[%clk 0:01:04.8]} 43. Kd2
{[%clk 0:00:17.3]} 43... Ke6 {[%clk 0:01:05]} 44. Kc2 {[%clk 0:00:17.4]} 44...
fxe4 {[%clk 0:01:05.2]} 45. fxe4 {[%clk 0:00:17.9]} 45... d5 {[%clk 0:01:05.4]}
46. exd5+ {[%clk 0:00:18.6]} 46... Kxd5 {[%clk 0:01:05.3]} 47. Bc3 {[%clk
0:00:19.1]} 47... Rc8 {[%clk 0:01:02]} 48. Rb3 {[%clk 0:00:18.1]} 48... Rxb3
{[%clk 0:00:55.8]} 49. Kxb3 {[%clk 0:00:17.9]} 49... e4 {[%clk 0:00:54.9]} 50.
Rxa2 {[%clk 0:00:17.9]} 50... e3 {[%clk 0:00:52.8]} 51. Re2 {[%clk 0:00:17.1]}
51... Ke4 {[%clk 0:00:52.8]} 52. Bd2 {[%clk 0:00:16]} 52... Kd3 {[%clk
0:00:51.7]} 53. Rxe3+ {[%clk 0:00:15.9]} 53... Kxd2 {[%clk 0:00:51.9]} 54. Rf3
{[%clk 0:00:16.3]} 54... Rb8 {[%clk 0:00:49.8]} 55. Rf4 {[%clk 0:00:13.2]} 55...
Ke3 {[%clk 0:00:49.6]} 56. Rc4 {[%clk 0:00:12.6]} 56... Rxb4+ {[%clk 0:00:47.5]}
57. Rxb4 {[%clk 0:00:12.9]} 57... Bxb4 {[%clk 0:00:47.3]} 58. Kxb4 {[%clk
0:00:13.8]} 58... Kf2 {[%clk 0:00:47.5]} 59. Kc3 {[%clk 0:00:14.3]} 59... Kxg2
{[%clk 0:00:47.6]} 60. Kd2 {[%clk 0:00:15.1]} 60... Kxh2 {[%clk 0:00:47.9]} 61.
Ke2 {[%clk 0:00:15.9]} 61... g5 {[%clk 0:00:48]} 62. Kf2 {[%clk 0:00:15.7]}
62... g4 {[%clk 0:00:47.2]} 63. Kf1 {[%clk 0:00:15.4]} 63... g3 {[%clk
0:00:47.3]} 0-1

[Event "Betsys MČR v online bleskovém šachu 2021"]
[Site "Chess.com"]
[Date "2021.04.17"]
[Round "4"]
[White "Mikulas19"]
[Black "FBingoPlayer"]
[Result "0-1"]
[WhiteElo "1876"]
[BlackElo "2189"]
[TimeControl "180+1"]
[EndTime "9:37:33 PDT"]
[Termination "Uživatel FBingoPlayer zvítězil na čas"]

1. e4 {[%clk 0:03:00.9]} 1... e5 {[%clk 0:02:57.1]} 2. d4 {[%clk 0:03:00.4]}
2... exd4 {[%clk 0:02:56.9]} 3. Qxd4 {[%clk 0:03:01.3]} 3... Nc6 {[%clk
0:02:56.7]} 4. Qe3 {[%clk 0:03:01.5]} 4... b6 {[%clk 0:02:56.5]} 5. Nc3 {[%clk
0:03:00.6]} 5... Nf6 {[%clk 0:02:54.7]} 6. e5 {[%clk 0:02:42.5]} 6... Bc5 {[%clk
0:02:51.1]} 7. Qg3 {[%clk 0:02:33.3]} 7... Qe7 {[%clk 0:02:48.3]} 8. f4 {[%clk
0:02:22.6]} 8... d6 {[%clk 0:02:42.8]} 9. Qxg7 {[%clk 0:02:15.1]} 9... Rg8
{[%clk 0:02:23.7]} 10. Qxf6 {[%clk 0:02:12.6]} 10... Qxf6 {[%clk 0:02:20.3]} 11.
exf6 {[%clk 0:02:13.5]} 11... Nd4 {[%clk 0:02:12.8]} 12. Kd1 {[%clk 0:01:53.6]}
12... Bf5 {[%clk 0:02:11.5]} 13. Nd5 {[%clk 0:01:44.2]} 13... Kd7 {[%clk
0:02:07.7]} 14. Ne3 {[%clk 0:01:37.3]} 14... Be4 {[%clk 0:02:05.5]} 15. c3
{[%clk 0:01:28.6]} 15... Ne6 {[%clk 0:02:00.7]} 16. f5 {[%clk 0:01:19.2]} 16...
Nf4 {[%clk 0:01:52.7]} 17. Nf3 {[%clk 0:01:11.1]} 17... Nxg2 {[%clk 0:01:43.1]}
18. Bxg2 {[%clk 0:00:47.5]} 18... Rxg2 {[%clk 0:01:40.4]} 19. Nxg2 {[%clk
0:00:46.2]} 19... Bxf3+ {[%clk 0:01:37.7]} 20. Kc2 {[%clk 0:00:41.4]} 20... Rg8
{[%clk 0:01:18.1]} 21. Re1 {[%clk 0:00:34.8]} 21... Rxg2+ {[%clk 0:01:16.7]} 22.
Bd2 {[%clk 0:00:34.6]} 22... d5 {[%clk 0:01:09]} 23. b4 {[%clk 0:00:31.3]} 23...
Bd6 {[%clk 0:01:06.9]} 24. Rg1 {[%clk 0:00:29.7]} 24... Rxh2 {[%clk 0:01:05.6]}
25. Raf1 {[%clk 0:00:26.7]} 25... Bg2 {[%clk 0:00:49.8]} 26. Re1 {[%clk
0:00:20.6]} 26... h5 {[%clk 0:00:48.7]} 27. Kb3 {[%clk 0:00:15.9]} 27... h4
{[%clk 0:00:48.7]} 28. Re2 {[%clk 0:00:15]} 28... h3 {[%clk 0:00:49.2]} 29. Rf2
{[%clk 0:00:14.2]} 29... c5 {[%clk 0:00:47.6]} 30. Bf4 {[%clk 0:00:11.8]} 30...
Bxf4 {[%clk 0:00:28.7]} 31. Rxf4 {[%clk 0:00:12.7]} 31... Kd6 {[%clk 0:00:28.1]}
32. Rg4 {[%clk 0:00:10.4]} 32... a5 {[%clk 0:00:22.8]} 33. bxa5 {[%clk
0:00:09.5]} 33... bxa5 {[%clk 0:00:23.7]} 34. Rg7 {[%clk 0:00:09.1]} 34... d4
{[%clk 0:00:21.9]} 35. Rxf7 {[%clk 0:00:07.5]} 35... Bd5+ {[%clk 0:00:21.5]} 36.
c4 {[%clk 0:00:05.2]} 36... Bxf7 {[%clk 0:00:21.5]} 37. Rg7 {[%clk 0:00:05]}
37... a4+ {[%clk 0:00:18.6]} 38. Kxa4 {[%clk 0:00:03.7]} 38... Bxc4 {[%clk
0:00:19.2]} 39. Ka5 {[%clk 0:00:01.2]} 39... Rxa2+ {[%clk 0:00:18.7]} 40. Kb6
{[%clk 0:00:01.2]} 40... Ra6+ {[%clk 0:00:15.9]} 41. Kb7 {[%clk 0:00:01.4]}
41... Ra1 {[%clk 0:00:15]} 42. f7 {[%clk 0:00:01.4]} 42... Rb1+ {[%clk
0:00:11.6]} 0-1

[Event "Betsys MČR v online bleskovém šachu 2021"]
[Site "Chess.com"]
[Date "2021.04.17"]
[Round "4"]
[White "RadosC"]
[Black "vasekpaulus"]
[Result "1/2-1/2"]
[WhiteElo "2503"]
[BlackElo "2068"]
[TimeControl "180+1"]
[EndTime "9:37:35 PDT"]
[Termination "Remíza – nedostatek materiálu"]

1. e4 {[%clk 0:03:00.9]} 1... c5 {[%clk 0:02:59.7]} 2. Nf3 {[%clk 0:03:00.6]}
2... Nc6 {[%clk 0:02:59.7]} 3. Bb5 {[%clk 0:02:59.9]} 3... g6 {[%clk 0:02:59.3]}
4. O-O {[%clk 0:02:58.2]} 4... Bg7 {[%clk 0:02:57.8]} 5. c3 {[%clk 0:02:58.8]}
5... e5 {[%clk 0:02:56.8]} 6. d4 {[%clk 0:02:58.1]} 6... cxd4 {[%clk 0:02:52.2]}
7. cxd4 {[%clk 0:02:56.6]} 7... Nxd4 {[%clk 0:02:46.8]} 8. Nxd4 {[%clk
0:02:56.2]} 8... exd4 {[%clk 0:02:47]} 9. Bf4 {[%clk 0:02:56.8]} 9... Ne7 {[%clk
0:02:34.4]} 10. Bd6 {[%clk 0:02:48.2]} 10... Qb6 {[%clk 0:02:22.9]} 11. Bxe7
{[%clk 0:02:47.7]} 11... Kxe7 {[%clk 0:02:21.7]} 12. Bc4 {[%clk 0:02:37.4]}
12... Re8 {[%clk 0:02:16.7]} 13. Qf3 {[%clk 0:02:27.3]} 13... Qf6 {[%clk
0:02:11.7]} 14. Qa3+ {[%clk 0:02:24.4]} 14... Qd6 {[%clk 0:01:47.4]} 15. Qb3
{[%clk 0:02:22.7]} 15... Qb6 {[%clk 0:01:14.8]} 16. Bxf7 {[%clk 0:02:17]} 16...
Qxb3 {[%clk 0:01:14.1]} 17. Bxb3 {[%clk 0:02:16.3]} 17... d6 {[%clk 0:01:09.8]}
18. Nd2 {[%clk 0:02:15.7]} 18... Be6 {[%clk 0:00:49.9]} 19. Rac1 {[%clk
0:02:13]} 19... Rac8 {[%clk 0:00:49.5]} 20. Rcd1 {[%clk 0:02:07.5]} 20... Bxb3
{[%clk 0:00:39.8]} 21. Nxb3 {[%clk 0:02:06.5]} 21... Rc2 {[%clk 0:00:40.1]} 22.
Rd2 {[%clk 0:01:51.4]} 22... Rec8 {[%clk 0:00:32.2]} 23. Rfd1 {[%clk 0:01:49]}
23... Rxd2 {[%clk 0:00:21.1]} 24. Rxd2 {[%clk 0:01:47.9]} 24... a5 {[%clk
0:00:20.2]} 25. a4 {[%clk 0:01:44.4]} 25... Rc4 {[%clk 0:00:19.5]} 26. f3 {[%clk
0:01:39.3]} 26... Rxa4 {[%clk 0:00:19.4]} 27. Kf2 {[%clk 0:01:36.8]} 27... b6
{[%clk 0:00:17.5]} 28. Ke2 {[%clk 0:01:36.4]} 28... Rb4 {[%clk 0:00:17.4]} 29.
Na1 {[%clk 0:01:13]} 29... Rxb2 {[%clk 0:00:15.3]} 30. Rxb2 {[%clk 0:01:05.8]}
30... d3+ {[%clk 0:00:15.4]} 31. Kxd3 {[%clk 0:01:06.7]} 31... Bxb2 {[%clk
0:00:16.2]} 32. Nc2 {[%clk 0:01:06.8]} 32... a4 {[%clk 0:00:12.1]} 33. Kc4
{[%clk 0:01:06.9]} 33... a3 {[%clk 0:00:11.2]} 34. Kb3 {[%clk 0:01:07.1]} 34...
Kd7 {[%clk 0:00:10.2]} 35. Nb4 {[%clk 0:01:07.1]} 35... Kc7 {[%clk 0:00:08.9]}
36. Nd5+ {[%clk 0:01:07]} 36... Kc6 {[%clk 0:00:08.7]} 37. g4 {[%clk 0:01:07.2]}
37... Kc5 {[%clk 0:00:06.2]} 38. h4 {[%clk 0:01:06.6]} 38... Bg7 {[%clk
0:00:04.8]} 39. Kxa3 {[%clk 0:01:05.1]} 39... Kd4 {[%clk 0:00:05]} 40. h5 {[%clk
0:00:50]} 40... gxh5 {[%clk 0:00:04.6]} 41. gxh5 {[%clk 0:00:49.8]} 41... Kd3
{[%clk 0:00:04.3]} 42. Kb4 {[%clk 0:00:48.3]} 42... Ke2 {[%clk 0:00:02.7]} 43.
f4 {[%clk 0:00:46.5]} 43... Kf3 {[%clk 0:00:02.9]} 44. f5 {[%clk 0:00:45.3]}
44... Kxe4 {[%clk 0:00:03.2]} 45. f6 {[%clk 0:00:44.6]} 45... Bf8 {[%clk
0:00:03.6]} 46. Nxb6 {[%clk 0:00:39.9]} 46... Ke5 {[%clk 0:00:04]} 47. Nd7+
{[%clk 0:00:39.5]} 47... Ke6 {[%clk 0:00:03.8]} 48. Nxf8+ {[%clk 0:00:39.4]}
48... Kxf6 {[%clk 0:00:04.7]} 49. Nxh7+ {[%clk 0:00:38.9]} 49... Kg7 {[%clk
0:00:04.7]} 50. Ng5 {[%clk 0:00:34.1]} 50... Kh6 {[%clk 0:00:04.9]} 51. Nf7+
{[%clk 0:00:33.9]} 51... Kxh5 {[%clk 0:00:05.2]} 52. Nxd6 {[%clk 0:00:34.8]}
1/2-1/2

[Event "Betsys MČR v online bleskovém šachu 2021"]
[Site "Chess.com"]
[Date "2021.04.17"]
[Round "4"]
[White "LiborRojar"]
[Black "sajmon8"]
[Result "1-0"]
[WhiteElo "2063"]
[BlackElo "1591"]
[TimeControl "180+1"]
[EndTime "9:37:35 PDT"]
[Termination "Uživatel LiborRojar zvítězil na čas"]

1. e4 {[%clk 0:03:00.9]} 1... e6 {[%clk 0:02:59.9]} 2. d4 {[%clk 0:03:00.4]}
2... d5 {[%clk 0:03:00.4]} 3. e5 {[%clk 0:03:00.5]} 3... c5 {[%clk 0:02:59.9]}
4. Qg4 {[%clk 0:03:00.2]} 4... Nc6 {[%clk 0:02:59.4]} 5. Nf3 {[%clk 0:03:00.2]}
5... cxd4 {[%clk 0:02:57.8]} 6. Bd3 {[%clk 0:03:00.1]} 6... Bd7 {[%clk
0:02:54.8]} 7. O-O {[%clk 0:02:59.8]} 7... Qb6 {[%clk 0:02:53.7]} 8. Nbd2 {[%clk
0:02:58]} 8... Rc8 {[%clk 0:02:48.9]} 9. Nb3 {[%clk 0:02:56.9]} 9... h5 {[%clk
0:02:42.7]} 10. Qg3 {[%clk 0:02:55.2]} 10... Nge7 {[%clk 0:02:28.8]} 11. Re1
{[%clk 0:02:50]} 11... g6 {[%clk 0:02:17.1]} 12. Bd2 {[%clk 0:02:28.5]} 12...
Rg8 {[%clk 0:01:52.6]} 13. a4 {[%clk 0:02:26.4]} 13... Qc7 {[%clk 0:01:39.4]}
14. Nbxd4 {[%clk 0:02:21.1]} 14... Nxd4 {[%clk 0:01:20.2]} 15. Nxd4 {[%clk
0:02:20.4]} 15... Nc6 {[%clk 0:01:13.5]} 16. c3 {[%clk 0:02:04.7]} 16... Nxd4
{[%clk 0:01:08.9]} 17. cxd4 {[%clk 0:02:04.8]} 17... Qb6 {[%clk 0:01:07]} 18.
Bc3 {[%clk 0:01:56]} 18... a5 {[%clk 0:01:01.2]} 19. Qf4 {[%clk 0:01:47.9]}
19... Bb4 {[%clk 0:00:58.4]} 20. Bxb4 {[%clk 0:01:29.1]} 20... Qxb4 {[%clk
0:00:56]} 21. Re2 {[%clk 0:01:07.9]} 21... Bxa4 {[%clk 0:00:50.5]} 22. h4 {[%clk
0:00:58.4]} 22... Bb3 {[%clk 0:00:45]} 23. Re3 {[%clk 0:00:52]} 23... a4 {[%clk
0:00:35]} 24. Rf3 {[%clk 0:00:48.2]} 24... Rf8 {[%clk 0:00:31.7]} 25. g4 {[%clk
0:00:34.8]} 25... Bc2 {[%clk 0:00:25]} 26. gxh5 {[%clk 0:00:28.7]} 26... Bxd3
{[%clk 0:00:19]} 27. Rxd3 {[%clk 0:00:27.9]} 27... gxh5 {[%clk 0:00:19.2]} 28.
Rda3 {[%clk 0:00:26.2]} 28... Qxb2 {[%clk 0:00:17.4]} 29. Rxa4 {[%clk
0:00:25.9]} 29... Rg8+ {[%clk 0:00:17]} 30. Kh2 {[%clk 0:00:18.5]} 30... Qe2
{[%clk 0:00:15.9]} 31. Ra8 {[%clk 0:00:14.7]} 31... Qc2 {[%clk 0:00:11.6]} 32.
Qf6 {[%clk 0:00:10.3]} 32... Rf8 {[%clk 0:00:08]} 33. R8a7 {[%clk 0:00:08.4]}
33... Qb3 {[%clk 0:00:06.2]} 34. Ra8 {[%clk 0:00:06.7]} 34... Qc4 {[%clk
0:00:06.2]} 35. Rxc8+ {[%clk 0:00:05.8]} 35... Qxc8 {[%clk 0:00:05.4]} 36. Rb1
{[%clk 0:00:05.6]} 36... Kd7 {[%clk 0:00:03.8]} 37. Rg1 {[%clk 0:00:04.7]} 37...
Qd8 {[%clk 0:00:02.3]} 38. Qg7 {[%clk 0:00:02.4]} 38... Qe7 {[%clk 0:00:01.5]}
39. Rg5 {[%clk 0:00:01.8]} 1-0